[Event "45th FIDE Olympiad 2024"]
[Site "Budapest"]
[Date "2024.09.13"]
[Round "3.53"]
[White "Kuybokarov, Temur"]
[Black "Volokitin, Andrei"]
[Result "1/2-1/2"]
[ECO "B97"]
[WhiteElo "2562"]
[BlackElo "2660"]
[Annotator "TA"]
[PlyCount "86"]
[EventDate "2024.09.05"]
[EventType "team-tourn"]
[EventCountry "HUN"]
[SourceTitle "playchess.com"]
[Source "ChessBase"]
[SourceQuality "1"]
[WhiteTeam "Australia"]
[BlackTeam "Ukraine"]
[WhiteTeamCountry "AUS"]
[BlackTeamCountry "UKR"]
[TimeControl "40/5400+30:1800+30"]

{[%evp 19,86,0,0,0,16,7,45,34,27,0,14,0,0,0,0,0,0,0,16,17,8,0,17,20,19,0,-3,0,13,12,9,13,10,10,10,10,9,7,33,6,15,16,13,0,1,0,0,0,0,0,0,0,0,0,0,0,0,0,0,0,0,0,0,0,0,0,0,0,0]} 1. e4 {[%emt 0:00:04]} c5 {[%emt 0:00:07]} 2. Nf3 {[%emt 0:00:09]} d6 {[%emt 0:00:09]} 3. d4 {[%emt 0:00:09]} cxd4 {[%emt 0:00:06]} 4. Nxd4 {[%emt 0:00:07]} Nf6 {[%emt 0:00:05]} 5. Nc3 {[%emt 0:00:08]} a6 {[%emt 0:00:05]} 6. Bg5 {[%emt 0:00:32]} e6 {[%emt 0:00:08]} 7. f4 {[%emt 0:00:21]} Qb6 {[%emt 0:00:08]} 8. Qd2 {[%emt 0:00:22]} Qxb2 {[%emt 0:00:07]} 9. Rb1 {[%emt 0:00:09]} Qa3 {[%emt 0:00:04]} 10. f5 {[%emt 0:00:10]} Nc6 {[%emt 0:00:11]} 11. fxe6 {[%emt 0:00:39]} Bxe6 {[%emt 0:00:07]} 12. Rxb7 {[%emt 0:00:23]} Nxd4 {[%emt 0:00:07]} 13. Qxd4 {[%emt 0:00:11] aiming for Nd5. White is slightly better.} Be7 $1 {[%emt 0:00:06][%cal Oa8c8]} 14. Bd3 {[%emt 0:00:18] Black must now prevent 0-0.} (14. Bc4 {is interesting.} Rc8 15. Nd5 Bxd5 16. Bxd5 Nxd5 17. Qxd5 Qc3+ 18. Ke2) 14... h6 {[%emt 0:00:10]} 15. Bd2 {[%emt 0:00:13][%cal Bg5d2,Bd2e3,Be3d4][%mdl 32]} Qc5 {[%emt 0:05:05]} 16. Qxc5 {[%emt 0:00:39]} dxc5 {[%emt 0:00:03]} 17. Rf1 {[%emt 0:00:10]} c4 {[%emt 0:21:31]} 18. Be2 {[%emt 0:00:31]} Ba3 {[%emt 0:00:07]} 19. Be3 {[%emt 0:07:44]} O-O {[%emt 0:05:35]} (19... Rd8 {with more complications.} 20. Bb6 Bb4 21. Rf3 Rc8) 20. Bd4 {[%emt 0:03:44]} Rfb8 {[%emt 0:11:16]} 21. Rxb8+ {[%emt 0:03:56]} Rxb8 {[%emt 0:00:01]} 22. Kd2 {[%emt 0:18:14]} Rd8 {[%emt 0:14:18]} 23. Ke3 {[%emt 0:00:24]} Be7 {[%emt 0:00:08]} 24. Bxf6 {[%emt 0:12:02]} Bxf6 {[%emt 0:19:33] [#]} 25. Nd5 {[%emt 0:00:57]} Bxd5 {[%emt 0:07:15]} 26. exd5 {[%emt 0:01:14]} Rxd5 {[%emt 0:03:29]} 27. Bxc4 $11 {[%emt 0:00:19][%mdl 4096] Endgame. KRB-KRB} Rg5 {[%emt 0:00:51]} 28. g3 {[%emt 0:10:30]} Rg4 {[%emt 0:04:54]} 29. Bb3 {[%emt 0:03:48]} Kf8 {[%emt 0:01:12] The position is equal.} 30. Rd1 {[%emt 0:11:20]} Ke7 {[%emt 0:00:18]} 31. Re1 {[%emt 0:03:41] [#] Strongly threatening Kf3+.} Rg5 {[%emt 0:02:38]} 32. Kf4+ {[%emt 0:01:05]} Kf8 {[%emt 0:00:31]} 33. Rd1 {[%emt 0:04:56]} Ke7 {[%emt 0:00:02] Against Rd7+} 34. Re1+ {[%emt 0:03:20]} Kf8 {[%emt 0:00:01]} 35. Re4 {[%emt 0:00:08]} h5 {[%emt 0:01:05]} 36. h3 {[%emt 0:02:58]} Rc5 {[%emt 0:00:30]} 37. Rc4 {[%emt 0:00:57]} Rxc4+ {[%emt 0:01:10]} 38. Bxc4 {[%emt 0:00:04] KB-KB} a5 $1 {[%emt 0:00:03]} 39. Ke4 {[%emt 0:00:37]} Bc3 {[%emt 0:00:34]} 40. g4 {[%emt 0:01:23]} hxg4 {[%emt 0:00:26]} 41. hxg4 {[%emt 0:30:05]} Ke7 {[%emt 0:30:05]} 42. a4 {[%emt 0:00:45]} f6 {[%emt 0:00:19]} 43. Kd5 {[%emt 0:00:25]} Kd7 {[%emt 0:00:18] Weighted Error Value: White=0.05 (flawless) /Black=0.03 (flawless) .  Inaccurate:     	White=1     	Black=1      OK:         	White=12    	Black=19     Strong:       	---       	Black=2} 1/2-1/2

[Event "45th FIDE Olympiad 2024"]
[Site "Budapest"]
[Date "2024.09.13"]
[Round "3.53"]
[White "Sihlongonyane, Sikhanyiso"]
[Black "Anquandah, Francis Eric"]
[Result "1/2-1/2"]
[ECO "B01"]
[WhiteElo "1813"]
[BlackElo "1941"]
[Annotator "NA RC"]
[PlyCount "139"]
[EventDate "2024.09.05"]
[EventType "team-tourn"]
[EventCountry "HUN"]
[SourceTitle "playchess.com"]
[Source "ChessBase"]
[SourceQuality "1"]
[WhiteTeam "Eswatini"]
[BlackTeam "Ghana"]
[BlackTeamCountry "GHA"]
[TimeControl "40/5400+30:1800+30"]

1. e4 d5 2. exd5 Qxd5 3. Nc3 Qa5 4. d4 c6 5. h3 Nf6 6. Nf3 Bf5 7. Bc4 e6 8. O-O Bd6 9. Re1 O-O 10. Qe2 Qc7 11. Bg5 Nbd7 12. Rad1 h6 13. Bc1 a6 14. Ne5 c5 15. Nxd7 Nxd7 16. d5 e5 17. Bd3 Bh7 18. Bxh7+ Kxh7 19. Ne4 f5 20. Nxd6 Qxd6 21. c4 Rae8 22. b3 Kg8 23. Bb2 b6 24. Qh5 Kh7 25. Rd3 g6 26. Qe2 Re7 27. Re3 Rfe8 28. f3 Kg8 29. Qc2 b5 30. Qf2 Kh7 31. Qh4 g5 32. Qf2 Kg8 33. Qc2 Rf8 34. Qb1 Kg7 35. Qa1 Rfe8 36. R3e2 Kf7 37. Qb1 Qg6 38. g4 fxg4 39. Qxg6+ Kxg6 40. hxg4 bxc4 41. bxc4 Kf6 42. Ba3 Rb8 43. Re3 Ree8 44. Rb3 Rxb3 45. axb3 Rb8 46. Re3 Ke7 47. Kf2 Kd6 48. Ke2 a5 49. Bc1 Nb6 50. Bd2 Ra8 51. Bc3 Nd7 52. Kd3 a4 53. b4 a3 54. b5 a2 55. Re1 Rf8 56. Re3 Ra8 57. Re1 Ra4 58. Rh1 e4+ 59. fxe4 Ne5+ 60. Bxe5+ Kxe5 61. Ra1 Ra3+ 62. Kc2 Kxe4 63. d6 Ra7 64. Kb3 Rd7 65. Rxa2 Rxd6 66. Ra6 Rd3+ 67. Kc2 Rd4 68. Kc3 Rd3+ 69. Kc2 Rd4 70. Kc3 1/2-1/2

[Event "45th FIDE Olympiad 2024"]
[Site "Budapest"]
[Date "2024.09.13"]
[Round "3.54"]
[White "Ivanchuk, Vasyl"]
[Black "Cheng, Bobby"]
[Result "0-1"]
[ECO "C01"]
[WhiteElo "2635"]
[BlackElo "2588"]
[Annotator "TA"]
[PlyCount "80"]
[EventDate "2024.09.05"]
[EventType "team-tourn"]
[EventCountry "HUN"]
[SourceTitle "playchess.com"]
[Source "ChessBase"]
[SourceQuality "1"]
[WhiteTeam "Ukraine"]
[BlackTeam "Australia"]
[WhiteTeamCountry "UKR"]
[BlackTeamCountry "AUS"]
[TimeControl "40/5400+30:1800+30"]

{[%evp 12,80,5,6,0,0,34,0,0,0,32,28,41,33,33,34,38,39,47,15,23,28,22,8,21,16,22,10,20,21,20,20,24,20,41,40,32,39,47,25,39,24,30,25,22,14,17,15,14,0,10,0,0,0,6,8,12,0,17,16,16,1,1,0,0,0,0,-458,-437,-438,-435]} 1. e4 {[%emt 0:00:02]} e6 {[%emt 0:00:03]} 2. d4 {[%emt 0:00:11]} d5 {[%emt 0:00:03]} 3. exd5 {[%emt 0:00:14]} exd5 {[%emt 0:00:08]} 4. Nf3 {[%emt 0:00:03]} Bd6 {[%emt 0:07:10]} 5. c4 {[%emt 0:01:11]} c6 {[%emt 0:00:32]} 6. Nc3 {[%emt 0:07:50]} Nf6 {[%emt 0:01:36]} 7. Bd3 {[%emt 0:01:30]} O-O {[%emt 0:02:24]} 8. O-O {[%emt 0:00:06]} h6 {[%emt 0:17:54]} 9. Re1 {[%emt 0:05:56]} dxc4 {[%emt 0:07:32] The position is equal.} 10. Bxc4 {[%emt 0:00:57]} Bg4 {[%emt 0:00:31]} 11. h3 {[%emt 0:04:25]} Bxf3 {[%emt 0:00:33]} 12. Qxf3 {[%emt 0:00:02]} Nbd7 {[%emt 0:00:10]} 13. Bb3 {[%emt 0:09:44][%cal Bc4b3,Bb3c2,Bc2f5][%mdl 32]} Nb6 {[%emt 0:04:54]} 14. Bd2 {[%emt 0:00:16]} Bc7 {[%emt 0:07:29][%cal Oa7a5]} 15. Ne4 {[%emt 0:16:06] [#] Strongly threatening Nxf6+.} Nbd5 {[%emt 0:07:13]} 16. Nc5 {[%emt 0:13:20]} Rb8 {[%emt 0:01:06]} 17. a3 {[%emt 0:01:28]} Bb6 {[%emt 0:13:03]} 18. Bc2 {[%emt 0:03:25]} Re8 {[%emt 0:07:52]} 19. Rxe8+ {[%emt 0:06:09]} Qxe8 {[%emt 0:00:16]} 20. b4 {[%emt 0:00:01]} Bxc5 {[%emt 0:01:58]} 21. dxc5 {[%emt 0:13:18]} Rd8 {[%emt 0:01:10]} 22. Re1 {[%emt 0:01:18]} Qd7 {[%emt 0:02:01]} 23. Bf5 {[%emt 0:04:08] This pair of bishops is nice.} Qc7 {[%emt 0:00:01]} 24. g3 {[%emt 0:04:00]} Kf8 {[%emt 0:02:33]} 25. Bc1 {[%emt 0:02:15][%cal Bd2c1,Bc1b2,Bb2d4][%mdl 32]} a5 {[%emt 0:08:35]} 26. Bb2 {[%emt 0:00:01]} Re8 {[%emt 0:01:15] Against Be5} 27. Rxe8+ {[%emt 0:00:18]} Nxe8 {[%emt 0:00:39]} 28. b5 {[%emt 0:02:37]} Qe7 {[%emt 0:00:10]} 29. Bd4 {[%emt 0:00:11]} Nec7 {[%emt 0:01:17]} 30. Qg4 {[%emt 0:02:24]} Nf6 {[%emt 0:04:34]} 31. Qf4 {[%emt 0:01:33] [#] Hoping for Bxf6.} (31. Bxf6 {simplifies} Qxf6 32. bxc6 bxc6 33. Qe4) 31... Nfd5 {[%emt 0:00:37]} 32. Qg4 {[%emt 0:00:30]} Nf6 {[%emt 0:00:00]} 33. Bxf6 {[%emt 0:00:04]} Qxf6 $11 {[%emt 0:00:04][%mdl 4096] Endgame. KQB-KQN} 34. Qf4 {[%emt 0:00:32]} Qe7 {[%emt 0:00:45]} 35. bxc6 {[%emt 0:01:06]} bxc6 {[%emt 0:00:03]} 36. Be4 {[%emt 0:00:06]} g5 {[%emt 0:01:14]} 37. Qf5 {[%emt 0:00:48]} Qe6 {[%emt 0:01:01]} 38. Qf3 {[%emt 0:00:41]} Nb5 {[%emt 0:00:32]} 39. Bxc6 $2 {[%emt 0:00:33][%mdl 8192]} (39. Qd3 $11 {and White is okay.}) 39... Nd4 $19 {[%emt 0:00:25]} 40. Qd5 {[%emt 0:00:16]} Nxc6 {[%emt 0:00:15] Weighted Error Value: White=0.25 (precise) /Black=0.05 (flawless) .  Loses game:     	White=1     	---        Inaccurate:     	White=2     	Black=2      OK:         	White=12    	Black=14     Best:        	---       	Black=4} 0-1

[Event "45th FIDE Olympiad 2024"]
[Site "Budapest"]
[Date "2024.09.13"]
[Round "3.54"]
[White "Anhwere, Bernard"]
[Black "Mbongeni, Mabuza"]
[Result "0-1"]
[ECO "A46"]
[WhiteElo "1893"]
[BlackElo "1784"]
[Annotator "NA RC"]
[PlyCount "93"]
[EventDate "2024.09.05"]
[EventType "team-tourn"]
[EventCountry "HUN"]
[SourceTitle "playchess.com"]
[Source "ChessBase"]
[SourceQuality "1"]
[WhiteTeam "Ghana"]
[BlackTeam "Eswatini"]
[WhiteTeamCountry "GHA"]
[TimeControl "40/5400+30:1800+30"]

1. d4 Nf6 2. Nf3 e6 3. a3 d5 4. g3 Be7 5. Bg2 O-O 6. O-O b6 7. c4 Bb7 8. Qc2 Nbd7 9. b4 c5 10. dxc5 bxc5 11. b5 Qc7 12. Bb2 d4 13. Nbd2 e5 14. a4 a5 15. Ba3 Rfe8 16. h4 Bd6 17. Ng5 Bxg2 18. Kxg2 e4 19. Ngxe4 Qb7 20. f3 Bf8 21. Rfe1 h6 22. Qd3 Nxe4 23. Nxe4 f5 24. Nd2 g6 25. e4 Ne5 26. Qf1 Qf7 27. Rac1 f4 28. Re2 Bd6 29. g4 Qe7 30. Qh1 Kh7 31. Qh2 Nxg4 32. Qh3 Ne3+ 33. Kf2 Qe5 34. Rg1 Re6 35. Nb3 d3 36. Bb2 Qh5 37. Rxe3 fxe3+ 38. Kxe3 Rf8 39. Nd2 Bf4+ 40. Kxd3 Rd6+ 41. Kc2 Rxd2+ 42. Kb1 Rxb2+ 43. Kxb2 Qe5+ 44. Kb3 Rd8 45. Qg2 Rd3+ 46. Ka2 Rd2+ 47. Qxd2 0-1

[Event "45th FIDE Olympiad 2024"]
[Site "Budapest"]
[Date "2024.09.13"]
[Round "3.55"]
[White "Zhao, Zong-Yuan"]
[Black "Ponomariov, Ruslan"]
[Result "0-1"]
[ECO "C65"]
[WhiteElo "2478"]
[BlackElo "2654"]
[Annotator "TA"]
[PlyCount "140"]
[EventDate "2024.09.05"]
[EventType "team-tourn"]
[EventCountry "HUN"]
[SourceTitle "playchess.com"]
[Source "ChessBase"]
[SourceQuality "1"]
[WhiteTeam "Australia"]
[BlackTeam "Ukraine"]
[WhiteTeamCountry "AUS"]
[BlackTeamCountry "UKR"]
[TimeControl "40/5400+30:1800+30"]

{[%evp 59,140,-10,-10,-10,0,-10,-10,-10,-10,-10,-10,-10,-10,-10,0,0,0,0,0,-107,-107,-107,-107,-126,-126,-126,-126,-126,-126,-126,-118,-118,-118,-118,-85,-92,-12,-34,-36,-34,-40,-310,-83,-139,-67,-935,-842,-1140,-432,-4631,-3163,-1137,-745,-596,-489,-493,-477,-462,-439,-5681,-2213,-4598,-1760,-29965,-29968,-29967,-29970,-29974,-29974,-29975,-29976,-29976,-29977,-29978,-29979,-29979,-29980,-29980,-29980,-29980,-29981,-29981,-29981]} 1. e4 {[%emt 0:00:03]} e5 {[%emt 0:00:07]} 2. Nf3 {[%emt 0:00:04]} Nc6 {[%emt 0:00:07]} 3. Bb5 {[%emt 0:00:05]} Nf6 {[%emt 0:00:07]} 4. d3 {[%emt 0:04:50]} Bc5 {[%emt 0:03:09]} 5. Bxc6 {[%emt 0:00:05]} dxc6 {[%emt 0:00:14]} 6. Nbd2 {[%emt 0:00:05]} Qe7 {[%emt 0:02:20]} 7. Nc4 {[%emt 0:03:30]} Nd7 {[%emt 0:00:37]} 8. Qe2 {[%emt 0:02:06]} a5 {[%emt 0:05:42]} 9. a4 {[%emt 0:09:47]} b6 {[%emt 0:04:08]} 10. O-O {[%emt 0:09:04]} Ba6 {[%emt 0:03:35]} 11. b3 {[%emt 0:08:51]} f6 {[%emt 0:12:01]} 12. Nh4 {[%emt 0:05:42]} g6 {[%emt 0:02:13]} 13. g3 {[%emt 0:04:11]} Nf8 {[%emt 0:01:36]} 14. Be3 {[%emt 0:07:50]} Ne6 {[%emt 0:01:17]} 15. Bxc5 {[%emt 0:03:26]} Qxc5 {[%emt 0:04:40]} 16. Qe3 {[%emt 0:03:03]} Nd4 {[%emt 0:04:07]} 17. Rfc1 {[%emt 0:04:30]} O-O-O {[%emt 0:02:41]} 18. Nf3 {[%emt 0:02:26]} Bxc4 {[%emt 0:03:08]} 19. bxc4 {[%emt 0:00:12]} Ne6 {[%emt 0:04:00]} 20. Qxc5 {[%emt 0:06:26]} Nxc5 {[%emt 0:00:14]} 21. h4 {[%emt 0:00:06]} Kd7 {[%emt 0:02:24]} 22. Kf1 {[%emt 0:02:49]} Kd6 {[%emt 0:05:00]} 23. Re1 {[%emt 0:04:21]} Ne6 {[%emt 0:02:47]} 24. Ke2 {[%emt 0:01:00]} Rhf8 {[%emt 0:01:10]} 25. Kd1 {[%emt 0:03:18]} f5 {[%emt 0:03:21]} 26. exf5 {[%emt 0:00:44]} Rxf5 {[%emt 0:00:05]} 27. Nd2 {[%emt 0:00:10]} Rdf8 {[%emt 0:00:35]} 28. Ne4+ {[%emt 0:05:54]} Kd7 {[%emt 0:00:41]} 29. Rf1 {[%emt 0:02:11]} Rf3 {[%emt 0:03:45]} 30. Kd2 {[%emt 0:01:31]} h6 {[%emt 0:00:13]} 31. Rae1 {[%emt 0:02:18]} Nd4 {[%emt 0:02:08]} 32. Kc3 {[%emt 0:03:38]} c5 {[%emt 0:01:59]} 33. Kb2 {[%emt 0:00:44]} Kc6 {[%emt 0:12:14]} 34. Kc3 {[%emt 0:00:38]} R3f7 {[%emt 0:02:45]} 35. Re3 {[%emt 0:01:35]} Kd7 {[%emt 0:02:53]} 36. Rc1 {[%emt 0:00:42]} Nf5 {[%emt 0:01:38]} 37. Rf3 {[%emt 0:00:22]} Nd6 {[%emt 0:03:39]} 38. Rxf7+ {[%emt 0:00:03]} Rxf7 {[%emt 0:00:05]} 39. Re1 {[%emt 0:00:33]} (39. Nxd6 $1 $11 {remains equal.} cxd6 40. Rb1) 39... Nxe4+ $17 {[%emt 0:01:07]} 40. Rxe4 {[%emt 0:00:01]} Rxf2 {[%emt 0:01:54]} 41. Rxe5 {[%emt 0:30:05]} Rf3 $1 {[%emt 0:30:48]} 42. g4 {[%emt 0:00:00]} Rh3 {[%emt 0:00:00]} 43. h5 {[%emt 0:00:00] [#]} Rh4 $1 {[%emt 0:00:00]} 44. hxg6 {[%emt 0:00:00]} Rxg4 {[%emt 0:00:00]} 45. Rf5 {[%emt 0:00:00]} Rxg6 {[%emt 0:00:00]} 46. Rf7+ {[%emt 0:00:00]} Kd6 {[%emt 0:00:00]} 47. Rh7 {[%emt 0:00:00]} c6 {[%emt 0:00:00]} (47... Re6 $17) 48. Rb7 {[%emt 0:00:00]} Ke5 {[%emt 0:00:00]} 49. Rxb6 {[%emt 0:00:00]} h5 {[%emt 0:00:00]} 50. Rb8 $2 {[%emt 0:00:00][%mdl 8192]} ({Only move:} 50. Ra6 $15) 50... Kf4 $2 {[%emt 0:00:00]} (50... Rh6 $19 {and Black stays clearly on top. ...h4 is the strong threat.} 51. Re8+ Kf6 52. Rf8+ Ke6 53. Re8+ Kf5 54. Rf8+ Ke5 55. Re8+ Kf6 56. Rf8+ Kg5 57. Rg8+ Kf6 58. Rf8+) 51. Rh8 $17 {[%emt 0:00:00] [#]} Kg4 {[%emt 0:00:00]} (51... Kg5 $1 $17 {Strongly threatening ...h4.} 52. Kd2 h4) 52. d4 $2 {[%emt 0:00:08][%mdl 8192]} ({Not} 52. Ra8 $2 h4 53. Rxa5 h3 $19) (52. Kd2 $15) 52... cxd4+ $19 {[%emt 0:00:00]} 53. Kxd4 {[%emt 0:00:01]} Rg5 {[%emt 0:00:00]} (53... h4 $142 54. Kc5 h3) 54. c5 {[%emt 0:02:00]} (54. Ke3 $142 Kg3 (54... h4 55. Kf2 $17) 55. Ke2) 54... h4 $19 {[%emt 0:00:00]} 55. Ke3 {[%emt 0:05:56]} h3 {[%emt 0:00:05]} 56. Kf2 {[%emt 0:00:31]} Rxc5 {[%emt 0:02:34]} 57. Rg8+ {[%emt 0:00:26]} Kf4 {[%emt 0:00:42]} 58. Rf8+ {[%emt 0:00:51]} Ke4 {[%emt 0:01:56]} 59. Kg3 {[%emt 0:00:36]} (59. Re8+ $142 Kf4 60. Rf8+ Ke4 61. Re8+ Kd4 62. Rd8+ Kc3 63. Rh8) 59... Rc3+ {[%emt 0:01:19]} (59... Rxc2 $142 60. Kxh3 c5 61. Re8+ Kd3) 60. Kh2 $19 {[%emt 0:00:06]} c5 {[%emt 0:00:30]} 61. Ra8 {[%emt 0:00:28]} Rxc2+ {[%emt 0:00:45]} 62. Kxh3 {[%emt 0:00:01]} c4 {[%emt 0:00:08]} 63. Rxa5 {[%emt 0:00:15]} c3 {[%emt 0:00:18]} 64. Ra8 {[%emt 0:01:35]} Ra2 {[%emt 0:00:16]} 65. a5 {[%emt 0:00:32]} c2 {[%emt 0:00:30]} 66. Re8+ {[%emt 0:00:26]} Kd3 {[%emt 0:00:12]} 67. Rd8+ {[%emt 0:00:05]} Kc3 {[%emt 0:00:17]} 68. Rc8+ {[%emt 0:00:10]} Kb2 {[%emt 0:00:07]} 69. Rb8+ {[%emt 0:00:12]} Ka1 {[%emt 0:00:07]} 70. Rc8 {[%emt 0:01:30]} Kb1 {[%emt 0:00:06]} ({And not} 70... Rxa5 71. Rxc2 Kb1 72. Rf2 $11) 0-1

[Event "45th FIDE Olympiad 2024"]
[Site "Budapest"]
[Date "2024.09.13"]
[Round "3.55"]
[White "Nxumalo, Vuyo"]
[Black "Fomevor, Cephas Clinton"]
[Result "0-1"]
[ECO "A12"]
[WhiteElo "1746"]
[BlackElo "1873"]
[Annotator "NA RC"]
[PlyCount "92"]
[EventDate "2024.09.05"]
[EventType "team-tourn"]
[EventCountry "HUN"]
[SourceTitle "playchess.com"]
[Source "ChessBase"]
[SourceQuality "1"]
[WhiteTeam "Eswatini"]
[BlackTeam "Ghana"]
[BlackTeamCountry "GHA"]
[TimeControl "40/5400+30:1800+30"]

1. c4 c6 2. Nf3 Nf6 3. b3 d5 4. Bb2 Bf5 5. e3 e6 6. Nc3 Bd6 7. Be2 h6 8. Nd4 Bh7 9. f4 Nbd7 10. O-O O-O 11. d3 Rc8 12. Qd2 a6 13. Rad1 Re8 14. Nf3 Bc5 15. Kh1 Ng4 16. Nd4 Qh4 17. Bxg4 Qxg4 18. Rf3 e5 19. Rg3 Qh5 20. fxe5 Nxe5 21. Na4 Nxd3 22. Rf1 Bd6 23. Rxg7+ Kxg7 24. Nf5+ Kg8 25. Nxd6 Nxb2 26. Nxb2 Be4 27. Qf2 f5 28. Nxc8 Rxc8 29. h4 Kh7 30. Kh2 Rg8 31. Rg1 Qe8 32. cxd5 Qe5+ 33. g3 cxd5 34. Nd1 Rc8 35. Re1 Qa1 36. Qf4 Rc2+ 37. Kg1 Rc1 38. Qd6 Qg7 39. Kf2 Rc2+ 40. Re2 Rc1 41. Rd2 Rc6 42. Qb4 Rg6 43. Qd4 Qc7 44. Ke2 Qxg3 45. Nf2 Qf3+ 46. Kf1 Rg1+ 0-1

[Event "45th FIDE Olympiad 2024"]
[Site "Budapest"]
[Date "2024.09.13"]
[Round "3.56"]
[White "Korobov, Anton"]
[Black "Smerdon, David C"]
[Result "1-0"]
[ECO "E70"]
[WhiteElo "2650"]
[BlackElo "2475"]
[Annotator "TA"]
[PlyCount "85"]
[EventDate "2024.09.05"]
[EventType "team-tourn"]
[EventCountry "HUN"]
[SourceTitle "playchess.com"]
[Source "ChessBase"]
[SourceQuality "1"]
[WhiteTeam "Ukraine"]
[BlackTeam "Australia"]
[WhiteTeamCountry "UKR"]
[BlackTeamCountry "AUS"]
[TimeControl "40/5400+30:1800+30"]

{[%evp 18,85,18,18,8,0,0,0,0,0,10,14,21,23,22,24,18,26,60,0,35,26,48,48,48,46,49,66,56,0,0,0,45,50,58,34,50,50,51,37,34,44,70,36,243,243,243,243,243,243,243,244,450,386,445,445,453,224,671,664,619,627,605,585,602,597,602,590,575,564]} 1. d4 {[%emt 0:00:03]} Nf6 {[%emt 0:00:05]} 2. c4 {[%emt 0:00:12]} g6 {[%emt 0:00:09]} 3. Nc3 {[%emt 0:00:25]} Bg7 {[%emt 0:00:08]} 4. e4 {[%emt 0:00:30]} d6 {[%emt 0:00:05]} 5. Bd3 {[%emt 0:02:24]} O-O {[%emt 0:03:39]} 6. Nge2 {[%emt 0:02:52]} Nc6 {[%emt 0:02:01]} 7. O-O {[%emt 0:01:42]} e5 {[%emt 0:01:57]} 8. d5 {[%emt 0:00:36]} Nd4 {[%emt 0:03:56]} 9. Nxd4 {[%emt 0:01:13]} exd4 {[%emt 0:00:06]} 10. Ne2 {[%emt 0:00:06]} Re8 {[%emt 0:02:14]} 11. Qc2 {[%emt 0:07:48][%cal Oc1g5]} Nd7 {[%emt 0:13:47]} 12. b3 {[%emt 0:02:37]} c5 {[%emt 0:02:51] The position is equal.} 13. f4 {[%emt 0:03:17] Prevents Ne5} Nf6 {[%emt 0:14:59][%cal Of6e4,Bd7f6,Bf6g4,Bg4e3][%mdl 32]} 14. Bd2 {[%emt 0:02:34]} Ng4 {[%emt 0:03:57]} 15. h3 {[%emt 0:26:25] Dodges f5} Ne3 {[%emt 0:00:28]} 16. Bxe3 {[%emt 0:00:02]} dxe3 {[%emt 0:00:09]} 17. Rad1 {[%emt 0:00:18]} b5 {[%emt 0:08:10]} 18. Rf3 {[%emt 0:03:47]} (18. cxb5 $14 a6 19. a4) 18... bxc4 {[%emt 0:03:55]} 19. Bxc4 {[%emt 0:02:56][%cal Oc2d3]} (19. bxc4 Rb8 $15) 19... f5 {[%emt 0:04:29]} 20. Rxe3 {[%emt 0:01:48][%cal Oe4e5]} fxe4 {[%emt 0:02:14]} 21. Rxe4 {[%emt 0:00:42]} Bf5 {[%emt 0:04:33]} 22. Rxe8+ {[%emt 0:02:39]} Qxe8 {[%emt 0:00:05]} 23. Bd3 {[%emt 0:00:30]} (23. Qd2 $14) 23... Qe3+ $11 {[%emt 0:01:58]} 24. Kh2 {[%emt 0:00:38]} Bd7 {[%emt 0:13:09][%cal Od7h3] This pair of bishops is nice.} 25. Rf1 {[%emt 0:03:15][%cal Bd1f1,Bf1f3,Bf3g3][%mdl 32]} Rf8 {[%emt 0:02:55]} 26. a3 {[%emt 0:11:01]} Kh8 {[%emt 0:02:09]} 27. Rf3 {[%emt 0:06:20]} Qe7 {[%emt 0:00:02]} 28. b4 {[%emt 0:00:57]} cxb4 {[%emt 0:04:18]} 29. axb4 {[%emt 0:00:10]} Qh4 {[%emt 0:00:31]} 30. Rg3 {[%emt 0:07:40]} Rxf4 $2 {[%emt 0:02:44] A mistake that costs the game.} ({Better is} 30... Qd8 $14) 31. Nxf4 $18 {[%emt 0:01:43]} Qxf4 {[%emt 0:00:01]} 32. Qc7 $1 {[%emt 0:00:06][%csl LRa7,LRd7]} Be5 {[%emt 0:03:00]} 33. Qd8+ {[%emt 0:00:13]} Kg7 {[%emt 0:00:01]} 34. Qxd7+ {[%emt 0:00:08]} Kh8 $2 {[%emt 0:01:08] [#]} (34... Kf8 35. Qg4 Qd2) 35. Qg4 $1 {[%emt 0:02:11] Qxf4 is the strong threat.} g5 {[%emt 0:01:28] [#]} (35... Qd2 36. Bb5) 36. Be2 $1 {[%emt 0:03:03]} h6 {[%emt 0:00:35] [#]} 37. Bd3 {[%emt 0:01:34]} Qe3 $2 {[%emt 0:00:20]} (37... Kg7 38. Bb5 (38. Qxf4 Bxf4 39. h4 g4 $18) 38... h5 39. Qxf4 (39. Qxh5 {gets mated.} Qxg3+ 40. Kg1 Bd4+ 41. Kh1 Qe1+) 39... Bxf4) 38. Qf3 {[%emt 0:01:38] White is clearly winning.} Qf4 {[%emt 0:00:08] [#]} 39. Kg1 $1 {[%emt 0:00:37]} Qd4+ {[%emt 0:00:39]} 40. Qf2 {[%emt 0:01:14]} Qa1+ {[%emt 0:00:09]} 41. Bf1 {[%emt 0:32:00] aiming for Qf8+.} Bd4 {[%emt 0:02:06] [#]} 42. Re3 $1 {[%emt 0:00:00]} Kg7 {[%emt 0:00:12] [#] Repels Qf8+} (42... Kg8 43. g3) 43. g4 $1 {[%emt 0:00:00] Weighted Error Value: White=0.18 (very precise) /Black=0.36.  Loses game:     	---       	Black=1      Mistake:       	White=3     	Black=2      Inaccurate:     	White=1     	Black=4      OK:         	White=11    	Black=10     Best:        	White=5     	Black=1} 1-0